[Event "Botvinnik Cup 2018"]
[Site "Moscow"]
[Date "2018.08.12"]
[Round "5"]
[White "Paichadze, Luka"]
[Black "Annageldiyev, Azatgeldi"]
[Result "1-0"]
[ECO "B53"]
[WhiteElo "2564"]
[BlackElo "1727"]
[Annotator "ChessBase"]
[PlyCount "97"]
[EventDate "2018.08.10"]
[EventCountry "RUS"]
[SourceTitle "playchess.com"]
[Source "ChessBase"]
[SourceQuality "1"]
[TimeControl "5400+30"]

1. e4 {[%emt 0:00:00]} c5 {[%emt 0:00:00]} 2. Nf3 {[%emt 0:00:00]} d6 {[%emt 0:00:00]} 3. d4 {[%emt 0:00:32]} cxd4 {[%emt 0:00:00]} 4. Qxd4 {[%emt 0:00:07]} Nc6 {[%emt 0:00:49]} 5. Bb5 {[%emt 0:00:06]} Bd7 {[%emt 0:00:05]} 6. Bxc6 {[%emt 0:00:22]} Bxc6 {[%emt 0:00:02]} 7. Nc3 {[%emt 0:00:10]} Nf6 {[%emt 0:01:30]} 8. Bg5 {[%emt 0:00:05]} e6 {[%emt 0:03:24]} 9. O-O-O {[%emt 0:04:28]} Be7 {[%emt 0:00:45]} 10. Rhe1 {[%emt 0:00:12]} Qa5 {[%emt 0:06:37]} 11. Kb1 {[%emt 0:00:53]} O-O {[%emt 0:04:48]} 12. Qd2 {[%emt 0:03:07]} Rfe8 {[%emt 0:08:22]} 13. Nd4 {[%emt 0:00:15]} Qb6 {[%emt 0:20:15]} 14. f3 {[%emt 0:00:47]} a5 {[%emt 0:04:02]} 15. a4 {[%emt 0:02:45]} Rac8 {[%emt 0:07:28]} 16. Ndb5 {[%emt 0:02:18]} Bxb5 {[%emt 0:13:45]} 17. Nxb5 {[%emt 0:05:56]} d5 {[%emt 0:03:41]} 18. Bxf6 {[%emt 0:08:35]} Bxf6 {[%emt 0:01:09]} 19. exd5 {[%emt 0:00:07]} exd5 {[%emt 0:02:10]} 20. Qxd5 {[%emt 0:04:00]} Rxe1 {[%emt 0:08:17]} 21. Rxe1 {[%emt 0:00:36]} Rd8 {[%emt 0:00:51]} 22. Qd6 {[%emt 0:03:07]} Qxd6 {[%emt 0:05:51]} 23. Nxd6 {[%emt 0:00:43]} b6 {[%emt 0:03:24]} 24. Nc4 {[%emt 0:00:51]} Bd4 {[%emt 0:02:27]} 25. Rd1 {[%emt 0:00:48]} Bf6 {[%emt 0:00:13]} 26. Rxd8+ {[%emt 0:08:31]} Bxd8 {[%emt 0:00:03]} 27. Kc1 {[%emt 0:00:08]} f5 {[%emt 0:01:53]} 28. Kd2 {[%emt 0:01:02]} Kf7 {[%emt 0:00:24]} 29. Kd3 {[%emt 0:01:30]} Ke6 {[%emt 0:00:23]} 30. c3 {[%emt 0:01:00]} h5 {[%emt 0:01:45]} 31. b4 {[%emt 0:00:27]} h4 {[%emt 0:00:23]} 32. bxa5 {[%emt 0:00:56]} bxa5 {[%emt 0:00:02]} 33. Nd2 {[%emt 0:00:16]} Bc7 {[%emt 0:00:41]} 34. Nf1 {[%emt 0:00:51]} g5 {[%emt 0:00:35]} 35. Kc4 {[%emt 0:01:39]} Be5 {[%emt 0:00:31]} 36. Kd3 {[%emt 0:00:55]} Bc7 {[%emt 0:00:52]} 37. c4 {[%emt 0:00:35]} Be5 {[%emt 0:00:27]} 38. h3 {[%emt 0:00:18]} Kd6 {[%emt 0:00:33]} 39. Ne3 {[%emt 0:00:20]} f4 {[%emt 0:00:28]} 40. Ng4 {[%emt 0:02:11]} Bg7 {[%emt 0:00:29]} 41. Nf2 {[%emt 0:00:43]} Ke5 {[%emt 0:00:35]} 42. Ne4 {[%emt 0:00:08]} Bh6 {[%emt 0:00:30]} 43. Nc5 {[%emt 0:00:03]} Kd6 {[%emt 0:00:30]} 44. Nb3 {[%emt 0:00:01]} Bf8 {[%emt 0:00:29]} 45. Nxa5 {[%emt 0:01:05]} Kc5 {[%emt 0:00:17]} 46. Nb7+ {[%emt 0:00:19]} Kb6 {[%emt 0:00:37]} 47. Nd8 {[%emt 0:00:06]} Ka5 {[%emt 0:00:17]} 48. Ne6 {[%emt 0:00:03]} Be7 {[%emt 0:00:06]} 49. c5 {[%emt 0:00:05]} 1-0

[Event "Botvinnik Cup 2018"]
[Site "Moscow"]
[Date "2018.08.12"]
[Round "5"]
[White "Paichadze, Luka"]
[Black "Saryev, Azim"]
[Result "1-0"]
[ECO "C00"]
[WhiteElo "2564"]
[BlackElo "1586"]
[Annotator "ChessBase"]
[PlyCount "85"]
[EventDate "2018.08.10"]
[EventCountry "RUS"]
[SourceTitle "playchess.com"]
[Source "ChessBase"]
[SourceQuality "1"]
[TimeControl "5400+30"]

1. e4 {[%emt 0:00:00]} e6 {[%emt 0:00:10]} 2. b3 {[%emt 0:00:00]} d5 {[%emt 0:00:16]} 3. Bb2 {[%emt 0:00:00]} Nf6 {[%emt 0:01:55]} 4. e5 {[%emt 0:00:00]} Nfd7 {[%emt 0:00:09]} 5. f4 {[%emt 0:00:00]} c5 {[%emt 0:00:21]} 6. Qg4 {[%emt 0:00:00]} h5 {[%emt 0:22:00]} 7. Qh3 {[%emt 0:00:27]} g6 {[%emt 0:01:21]} 8. Nf3 {[%emt 0:00:42]} Nc6 {[%emt 0:20:41]} 9. Be2 {[%emt 0:03:02]} d4 {[%emt 0:17:30]} 10. O-O {[%emt 0:01:52]} Nb6 {[%emt 0:06:11]} 11. c4 {[%emt 0:01:24]} a5 {[%emt 0:02:41]} 12. Na3 {[%emt 0:02:13]} Bd7 {[%emt 0:04:24]} 13. Nb5 {[%emt 0:07:49]} Nb4 {[%emt 0:05:47]} 14. a4 {[%emt 0:11:22]} Bc6 {[%emt 0:01:52]} 15. Ng5 {[%emt 0:06:38]} Qd7 {[%emt 0:05:41]} 16. Bf3 {[%emt 0:03:02]} Be7 {[%emt 0:02:10]} 17. Ne4 {[%emt 0:00:01]} Bxe4 {[%emt 0:00:42]} 18. Bxe4 {[%emt 0:00:05]} O-O-O {[%emt 0:00:55]} 19. Ba3 {[%emt 0:00:17]} Na6 {[%emt 0:02:40]} 20. Qg3 {[%emt 0:01:55]} Kb8 {[%emt 0:00:26]} 21. d3 {[%emt 0:00:53]} Rhg8 {[%emt 0:00:31]} 22. Qe1 {[%emt 0:00:24]} Nb4 {[%emt 0:00:43]} 23. Bxb4 {[%emt 0:00:39]} cxb4 {[%emt 0:00:21]} 24. Rc1 {[%emt 0:00:40]} Bc5 {[%emt 0:00:11]} 25. Kf2 {[%emt 0:00:47]} Rh8 {[%emt 0:00:29]} 26. Ke2 {[%emt 0:03:41]} Rhg8 {[%emt 0:00:50]} 27. Kd2 {[%emt 0:00:32]} Rc8 {[%emt 0:01:23]} 28. Kc2 {[%emt 0:00:13]} Rh8 {[%emt 0:00:04]} 29. g3 {[%emt 0:03:34]} Rhg8 {[%emt 0:00:06]} 30. h3 {[%emt 0:00:30]} Rh8 {[%emt 0:00:12]} 31. Qe2 {[%emt 0:00:15]} Rh6 {[%emt 0:00:37]} 32. Rf2 {[%emt 0:00:12]} Rch8 {[%emt 0:00:18]} 33. Rcf1 {[%emt 0:01:01]} Rf8 {[%emt 0:00:53]} 34. Qf3 {[%emt 0:01:00]} Rhh8 {[%emt 0:00:24]} 35. g4 {[%emt 0:00:50]} h4 {[%emt 0:01:41]} 36. f5 {[%emt 0:00:44]} g5 {[%emt 0:00:06]} 37. fxe6 {[%emt 0:00:43]} fxe6 {[%emt 0:00:09]} 38. Qxf8+ {[%emt 0:00:42]} Rxf8 {[%emt 0:00:58]} 39. Rxf8+ {[%emt 0:00:03]} Bxf8 {[%emt 0:00:05]} 40. Rxf8+ {[%emt 0:00:04]} Nc8 {[%emt 0:00:20]} 41. Nd6 {[%emt 0:00:09]} Ka7 {[%emt 0:01:12]} 42. Rxc8 {[%emt 0:09:52]} Qg7 {[%emt 0:00:52]} 43. c5 {[%emt 0:00:10]} 1-0

[Event "Botvinnik Cup 2018"]
[Site "Moscow"]
[Date "2018.08.12"]
[Round "5"]
[White "Atabayev, Maksat"]
[Black "Qalichava, Akaki"]
[Result "1/2-1/2"]
[ECO "A14"]
[WhiteElo "2505"]
[BlackElo "1874"]
[Annotator "ChessBase"]
[PlyCount "122"]
[EventDate "2018.08.10"]
[EventCountry "RUS"]
[SourceTitle "playchess.com"]
[Source "ChessBase"]
[SourceQuality "1"]
[TimeControl "5400+30"]

1. Nf3 {[%emt 0:00:00]} Nf6 {[%emt 0:00:00]} 2. c4 {[%emt 0:00:00]} e6 {[%emt 0:00:07]} 3. g3 {[%emt 0:00:45]} d5 {[%emt 0:00:44]} 4. Bg2 {[%emt 0:00:06]} Be7 {[%emt 0:00:17]} 5. O-O {[%emt 0:00:12]} O-O {[%emt 0:00:16]} 6. b3 {[%emt 0:00:47]} c5 {[%emt 0:01:13]} 7. cxd5 {[%emt 0:00:37]} Nxd5 {[%emt 0:00:20]} 8. Bb2 {[%emt 0:00:34]} Nc6 {[%emt 0:01:30]} 9. Nc3 {[%emt 0:00:06]} Bf6 {[%emt 0:01:24]} 10. Qc1 {[%emt 0:01:35]} Nxc3 {[%emt 0:06:59]} 11. Bxc3 {[%emt 0:00:24]} Nd4 {[%emt 0:00:21]} 12. Nxd4 {[%emt 0:00:02]} cxd4 {[%emt 0:00:07]} 13. Bb4 {[%emt 0:00:54]} Be7 {[%emt 0:00:24]} 14. Qa3 {[%emt 0:01:52]} Bxb4 {[%emt 0:02:05]} 15. Qxb4 {[%emt 0:00:15]} Rb8 {[%emt 0:02:45]} 16. Rfc1 {[%emt 0:00:29]} b6 {[%emt 0:06:18]} 17. Rc6 {[%emt 0:00:48]} a5 {[%emt 0:02:53]} 18. Qd6 {[%emt 0:02:43]} Ba6 {[%emt 0:02:34]} 19. Qe5 {[%emt 0:00:14]} Qf6 {[%emt 0:02:27]} 20. Qxf6 {[%emt 0:00:03]} gxf6 {[%emt 0:00:05]} 21. e3 {[%emt 0:00:01]} dxe3 {[%emt 0:00:25]} 22. fxe3 {[%emt 0:00:13]} Rfc8 {[%emt 0:02:01]} 23. Rac1 {[%emt 0:00:02]} Kf8 {[%emt 0:01:13]} 24. Kf2 {[%emt 0:00:24]} Ke7 {[%emt 0:03:13]} 25. d4 {[%emt 0:00:12]} Kd7 {[%emt 0:12:02]} 26. g4 {[%emt 0:00:42]} Rxc6 {[%emt 0:03:23]} 27. Bxc6+ {[%emt 0:00:39]} Kd6 {[%emt 0:00:45]} 28. Be4 {[%emt 0:00:10]} Bb5 {[%emt 0:01:02]} 29. a3 {[%emt 0:01:13]} Rg8 {[%emt 0:04:04]} 30. Bf3 {[%emt 0:00:22]} Bd7 {[%emt 0:09:34]} 31. h3 {[%emt 0:00:11]} Bb5 {[%emt 0:00:59]} 32. b4 {[%emt 0:03:47]} a4 {[%emt 0:01:12]} 33. Rc3 {[%emt 0:02:44]} Bd7 {[%emt 0:01:31]} 34. e4 {[%emt 0:00:39]} Bb5 {[%emt 0:01:15]} 35. Ke3 {[%emt 0:02:30]} Bd7 {[%emt 0:00:38]} 36. Be2 {[%emt 0:00:29]} Rg5 {[%emt 0:02:03]} 37. Rc1 {[%emt 0:01:41]} Rg8 {[%emt 0:02:42]} 38. Rf1 {[%emt 0:01:46]} Ke7 {[%emt 0:05:15]} 39. Bd3 {[%emt 0:00:17]} h5 {[%emt 0:06:27]} 40. gxh5 {[%emt 0:00:17]} Rg3+ {[%emt 0:00:02]} 41. Rf3 {[%emt 0:00:01]} Rg5 {[%emt 0:00:11]} 42. h4 {[%emt 0:03:13]} Rxh5 {[%emt 0:00:58]} 43. Rh3 {[%emt 0:00:12]} Rh6 {[%emt 0:03:25]} 44. h5 {[%emt 0:00:15]} e5 {[%emt 0:02:04]} 45. Rh4 {[%emt 0:00:07]} exd4+ {[%emt 0:00:21]} 46. Kxd4 {[%emt 0:00:02]} f5 {[%emt 0:00:12]} 47. exf5 {[%emt 0:00:11]} Kf6 {[%emt 0:00:11]} 48. b5 {[%emt 0:01:16]} Kg5 {[%emt 0:01:34]} 49. Rh3 {[%emt 0:00:02]} Bxf5 {[%emt 0:01:27]} 50. Bxf5 {[%emt 0:00:19]} Kxf5 {[%emt 0:00:05]} 51. Kd5 {[%emt 0:00:12]} Kg4 {[%emt 0:00:21]} 52. Rc3 {[%emt 0:00:42]} f5 {[%emt 0:01:18]} 53. Rc6 {[%emt 0:00:28]} Rxh5 {[%emt 0:00:21]} 54. Rxb6 {[%emt 0:00:05]} f4+ {[%emt 0:01:55]} 55. Ke4 {[%emt 0:00:22]} Rg5 {[%emt 0:01:17]} 56. Rf6 {[%emt 0:00:38]} Rxb5 {[%emt 0:00:29]} 57. Rxf4+ {[%emt 0:00:11]} Kg5 {[%emt 0:00:18]} 58. Rf3 {[%emt 0:00:08]} Rb3 {[%emt 0:00:15]} 59. Rd3 {[%emt 0:00:05]} Rxd3 {[%emt 0:00:17]} 60. Kxd3 {[%emt 0:00:03]} Kf5 {[%emt 0:00:14]} 61. Kc4 {[%emt 0:00:46]} Ke4 {[%emt 0:00:08]} 1/2-1/2

[Event "Botvinnik Cup 2018"]
[Site "Moscow"]
[Date "2018.08.12"]
[Round "5"]
[White "Atabayev, Maksat"]
[Black "Tsotsonava, Elene"]
[Result "1-0"]
[ECO "B30"]
[WhiteElo "2505"]
[BlackElo "1701"]
[Annotator "ChessBase"]
[PlyCount "123"]
[EventDate "2018.08.10"]
[EventCountry "RUS"]
[SourceTitle "playchess.com"]
[Source "ChessBase"]
[SourceQuality "1"]
[TimeControl "5400+30"]

1. e4 {[%emt 0:00:00]} c5 {[%emt 0:00:00]} 2. Nf3 {[%emt 0:00:01]} Nc6 {[%emt 0:00:00]} 3. c3 {[%emt 0:01:29]} d5 {[%emt 0:00:02]} 4. exd5 {[%emt 0:00:11]} Qxd5 {[%emt 0:00:07]} 5. d4 {[%emt 0:01:43]} Bg4 {[%emt 0:00:12]} 6. Be2 {[%emt 0:00:13]} cxd4 {[%emt 0:00:20]} 7. cxd4 {[%emt 0:00:52]} e6 {[%emt 0:00:09]} 8. Nc3 {[%emt 0:00:36]} Bb4 {[%emt 0:00:15]} 9. O-O {[%emt 0:00:03]} Qa5 {[%emt 0:00:17]} 10. h3 {[%emt 0:03:29]} Bxf3 {[%emt 0:01:18]} 11. Bxf3 {[%emt 0:02:36]} Nge7 {[%emt 0:00:12]} 12. Bxc6+ {[%emt 0:02:51]} Nxc6 {[%emt 0:01:15]} 13. Qg4 {[%emt 0:00:30]} O-O-O {[%emt 0:12:24]} 14. Be3 {[%emt 0:01:05]} f5 {[%emt 0:14:20]} 15. Qxg7 {[%emt 0:00:47]} Bxc3 {[%emt 0:01:08]} 16. bxc3 {[%emt 0:00:02]} Rhg8 {[%emt 0:01:03]} 17. Qf7 {[%emt 0:01:42]} Qd5 {[%emt 0:00:34]} 18. f3 {[%emt 0:00:01]} Rdf8 {[%emt 0:02:40]} 19. Qh5 {[%emt 0:00:32]} Rg6 {[%emt 0:02:51]} 20. Qxh7 {[%emt 0:01:23]} Rfg8 {[%emt 0:01:00]} 21. Rf2 {[%emt 0:00:11]} Qc4 {[%emt 0:10:17]} 22. Rc1 {[%emt 0:01:02]} R6g7 {[%emt 0:01:20]} 23. Qh6 {[%emt 0:03:32]} Ne7 {[%emt 0:01:16]} 24. Bd2 {[%emt 0:00:36]} Rg6 {[%emt 0:02:10]} 25. Qe3 {[%emt 0:00:53]} Nc6 {[%emt 0:06:09]} 26. Kh2 {[%emt 0:02:09]} Qd5 {[%emt 0:04:48]} 27. Qf4 {[%emt 0:00:27]} Qxa2 {[%emt 0:05:05]} 28. c4 {[%emt 0:00:34]} Qb2 {[%emt 0:03:39]} 29. d5 {[%emt 0:03:26]} Qg7 {[%emt 0:03:30]} 30. Rg1 {[%emt 0:01:52]} Ne5 {[%emt 0:05:18]} 31. Re2 {[%emt 0:00:37]} Rg3 {[%emt 0:01:44]} 32. Qh6 {[%emt 0:04:50]} Qxh6 {[%emt 0:07:02]} 33. Bxh6 {[%emt 0:00:02]} Nxf3+ {[%emt 0:00:06]} 34. gxf3 {[%emt 0:00:07]} Rxg1 {[%emt 0:00:08]} 35. dxe6 {[%emt 0:00:01]} Kd8 {[%emt 0:07:58]} 36. f4 {[%emt 0:00:32]} Rc1 {[%emt 0:01:31]} 37. Bg5+ {[%emt 0:00:26]} Kc7 {[%emt 0:04:33]} 38. Re5 {[%emt 0:01:28]} Rxc4 {[%emt 0:00:51]} 39. Rxf5 {[%emt 0:00:48]} Re4 {[%emt 0:01:04]} 40. Rf7+ {[%emt 0:00:23]} Kd6 {[%emt 0:00:30]} 41. Rxb7 {[%emt 0:00:09]} Kxe6 {[%emt 0:00:41]} 42. Rxa7 {[%emt 0:00:18]} Kf5 {[%emt 0:00:34]} 43. Ra5+ {[%emt 0:00:08]} Kg6 {[%emt 0:00:10]} 44. Ra6+ {[%emt 0:00:01]} Kf7 {[%emt 0:00:14]} 45. Kg3 {[%emt 0:00:16]} Rc8 {[%emt 0:00:56]} 46. Kg4 {[%emt 0:00:12]} Re2 {[%emt 0:00:22]} 47. Ra7+ {[%emt 0:00:19]} Kg8 {[%emt 0:00:11]} 48. h4 {[%emt 0:00:30]} Rg2+ {[%emt 0:00:33]} 49. Kh5 {[%emt 0:00:21]} Rc6 {[%emt 0:00:17]} 50. Rb7 {[%emt 0:00:33]} Ra6 {[%emt 0:00:35]} 51. Rb4 {[%emt 0:01:24]} Kf7 {[%emt 0:00:47]} 52. Rb8 {[%emt 0:00:13]} Rc6 {[%emt 0:00:33]} 53. Ra8 {[%emt 0:00:25]} Rb6 {[%emt 0:00:39]} 54. Ra5 {[%emt 0:00:16]} Rc6 {[%emt 0:00:36]} 55. Rf5+ {[%emt 0:00:04]} Kg7 {[%emt 0:00:17]} 56. Rd5 {[%emt 0:00:04]} Kf7 {[%emt 0:00:12]} 57. f5 {[%emt 0:00:18]} Ra6 {[%emt 0:00:48]} 58. Rd7+ {[%emt 0:00:19]} Ke8 {[%emt 0:00:04]} 59. Re7+ {[%emt 0:00:38]} Kf8 {[%emt 0:00:31]} 60. f6 {[%emt 0:00:02]} Rf2 {[%emt 0:00:53]} 61. Kg6 {[%emt 0:00:09]} Rg2 {[%emt 0:00:41]} 62. Rh7 {[%emt 0:00:23]} 1-0

[Event "Botvinnik Cup 2018"]
[Site "Moscow"]
[Date "2018.08.12"]
[Round "5"]
[White "Khusnutdinov, Rustam"]
[Black "Orozbaev, Eldiar"]
[Result "1-0"]
[ECO "B23"]
[WhiteElo "2470"]
[BlackElo "1785"]
[Annotator "ChessBase"]
[PlyCount "85"]
[EventDate "2018.08.10"]
[EventCountry "RUS"]
[SourceTitle "playchess.com"]
[Source "ChessBase"]
[SourceQuality "1"]
[TimeControl "5400+30"]

1. e4 {[%emt 0:00:00]} c5 {[%emt 0:00:00]} 2. Nc3 {[%emt 0:00:00]} d6 {[%emt 0:00:34]} 3. Nf3 {[%emt 0:00:35]} Nc6 {[%emt 0:00:33]} 4. d4 {[%emt 0:00:31]} cxd4 {[%emt 0:00:05]} 5. Nxd4 {[%emt 0:00:12]} g6 {[%emt 0:02:28]} 6. Bc4 {[%emt 0:00:25]} Bg7 {[%emt 0:00:34]} 7. Nb3 {[%emt 0:00:15]} Nf6 {[%emt 0:00:06]} 8. O-O {[%emt 0:00:03]} O-O {[%emt 0:00:04]} 9. Re1 {[%emt 0:00:11]} Bd7 {[%emt 0:03:44]} 10. Nd5 {[%emt 0:00:02]} Ne5 {[%emt 0:06:16]} 11. Bf1 {[%emt 0:00:53]} Nxd5 {[%emt 0:01:07]} 12. exd5 {[%emt 0:00:03]} Rc8 {[%emt 0:21:08]} 13. Bg5 {[%emt 0:00:07]} h6 {[%emt 0:01:41]} 14. Be3 {[%emt 0:00:56]} g5 {[%emt 0:09:24]} 15. c3 {[%emt 0:01:42]} f5 {[%emt 0:00:34]} 16. f4 {[%emt 0:02:15]} gxf4 {[%emt 0:10:08]} 17. Bxf4 {[%emt 0:00:08]} Ng6 {[%emt 0:00:59]} 18. Be3 {[%emt 0:03:02]} f4 {[%emt 0:01:00]} 19. Bd4 {[%emt 0:00:04]} Ne5 {[%emt 0:01:51]} 20. Nd2 {[%emt 0:00:50]} Qa5 {[%emt 0:11:22]} 21. Bxe5 {[%emt 0:11:50]} dxe5 {[%emt 0:00:20]} 22. Ne4 {[%emt 0:03:20]} Qb6+ {[%emt 0:03:21]} 23. Kh1 {[%emt 0:00:01]} Bf5 {[%emt 0:01:11]} 24. Qd2 {[%emt 0:03:22]} Rfd8 {[%emt 0:01:26]} 25. Rad1 {[%emt 0:05:29]} Kh8 {[%emt 0:03:38]} 26. c4 {[%emt 0:01:22]} Qg6 {[%emt 0:01:43]} 27. Bd3 {[%emt 0:00:48]} b5 {[%emt 0:04:35]} 28. b3 {[%emt 0:02:25]} Bxe4 {[%emt 0:04:29]} 29. Bxe4 {[%emt 0:00:09]} Qb6 {[%emt 0:00:03]} 30. Bb1 {[%emt 0:00:27]} Kg8 {[%emt 0:01:31]} 31. Bf5 {[%emt 0:05:41]} Rc7 {[%emt 0:02:37]} 32. Qe2 {[%emt 0:01:05]} bxc4 {[%emt 0:00:57]} 33. bxc4 {[%emt 0:00:03]} Qf6 {[%emt 0:00:33]} 34. Be6+ {[%emt 0:00:31]} Kh8 {[%emt 0:00:08]} 35. Rc1 {[%emt 0:00:03]} Rb8 {[%emt 0:02:05]} 36. c5 {[%emt 0:01:01]} Rb4 {[%emt 0:01:52]} 37. Qd3 {[%emt 0:01:06]} e4 {[%emt 0:00:42]} 38. Rxe4 {[%emt 0:02:32]} Rxe4 {[%emt 0:00:04]} 39. Qxe4 {[%emt 0:00:01]} Rxc5 {[%emt 0:00:20]} 40. Rb1 {[%emt 0:00:00]} Qb2 {[%emt 0:00:07]} 41. Qe1 {[%emt 0:01:08]} Rc2 {[%emt 0:03:32]} 42. Rxb2 {[%emt 0:01:32]} Bxb2 {[%emt 0:00:04]} 43. Bg4 {[%emt 0:00:02]} 1-0

[Event "Botvinnik Cup 2018"]
[Site "Moscow"]
[Date "2018.08.12"]
[Round "5"]
[White "Khusnutdinov, Rustam"]
[Black "Sakibaev, Nursultan"]
[Result "1-0"]
[ECO "B01"]
[WhiteElo "2470"]
[BlackElo "1754"]
[Annotator "RC"]
[PlyCount "155"]
[EventDate "2018.08.10"]
[EventCountry "RUS"]
[SourceTitle "playchess.com"]
[Source "ChessBase"]
[SourceQuality "1"]
[TimeControl "5400+30"]

1. e4 {[%emt 0:00:00]} d5 {[%emt 0:00:00]} 2. exd5 {[%emt 0:00:00]} Nf6 {[%emt 0:00:00]} 3. d4 {[%emt 0:00:25]} Nxd5 {[%emt 0:00:03]} 4. Nf3 {[%emt 0:00:14]} Bf5 {[%emt 0:00:21]} 5. Bd3 {[%emt 0:00:51]} Bxd3 {[%emt 0:00:09]} 6. Qxd3 {[%emt 0:00:03]} e6 {[%emt 0:00:17]} 7. Qb5+ {[%emt 0:00:37]} Nd7 {[%emt 0:00:13]} 8. Qxb7 {[%emt 0:00:01]} Nb4 {[%emt 0:10:46]} 9. Qe4 {[%emt 0:00:25]} Nf6 {[%emt 0:01:19]} 10. Qe2 {[%emt 0:00:37]} Bd6 {[%emt 0:03:32]} 11. O-O {[%emt 0:00:50]} h6 {[%emt 0:01:31]} 12. Na3 {[%emt 0:00:43]} O-O {[%emt 0:01:00]} 13. Nc4 {[%emt 0:00:07]} Nbd5 {[%emt 0:02:00]} 14. Nfe5 {[%emt 0:03:35]} c5 {[%emt 0:10:47]} 15. Nxd6 {[%emt 0:02:18]} Qxd6 {[%emt 0:00:07]} 16. c4 {[%emt 0:00:40]} Nb6 {[%emt 0:01:06]} 17. dxc5 {[%emt 0:00:02]} Qxc5 {[%emt 0:00:19]} 18. b3 {[%emt 0:00:02]} Rad8 {[%emt 0:14:03]} 19. Bb2 {[%emt 0:00:28]} a5 {[%emt 0:09:49]} 20. Rad1 {[%emt 0:01:38]} a4 {[%emt 0:04:16]} 21. Qf3 {[%emt 0:01:29]} Rfe8 {[%emt 0:06:21]} 22. h3 {[%emt 0:04:44]} Qc7 {[%emt 0:03:52]} 23. Qe3 {[%emt 0:11:45]} axb3 {[%emt 0:11:16]} 24. axb3 {[%emt 0:00:03]} Qb7 {[%emt 0:02:08]} 25. Rd4 {[%emt 0:01:03]} Rxd4 {[%emt 0:00:49]} 26. Qxd4 {[%emt 0:01:44]} Nbd7 {[%emt 0:02:54]} 27. Nxd7 {[%emt 0:01:18]} Qxd7 {[%emt 0:00:02]} 28. Qxd7 {[%emt 0:00:01]} Nxd7 {[%emt 0:00:02]} 29. Bd4 {[%emt 0:00:01]} e5 {[%emt 0:01:35]} 30. Be3 {[%emt 0:00:07]} f5 {[%emt 0:02:12]} 31. f3 {[%emt 0:01:44]} Kf7 {[%emt 0:00:18]} 32. b4 {[%emt 0:00:45]} Rb8 {[%emt 0:01:40]} 33. b5 {[%emt 0:01:04]} Ke6 {[%emt 0:03:08]} 34. Rb1 {[%emt 0:04:12]} Kd6 {[%emt 0:01:39]} 35. c5+ {[%emt 0:00:24]} Kc7 {[%emt 0:01:11]} 36. b6+ {[%emt 0:02:14]} Kb7 {[%emt 0:02:38]} 37. Ra1 {[%emt 0:00:05]} Rc8 {[%emt 0:00:53]} 38. Ra5 {[%emt 0:00:22]} g5 {[%emt 0:00:13]} 39. Kf1 {[%emt 0:00:03]} h5 {[%emt 0:00:21]} 40. Ke2 {[%emt 0:00:58]} Kc6 {[%emt 0:03:07]} 41. Kd3 {[%emt 0:01:45]} Kd5 {[%emt 0:01:10]} 42. Kc3 {[%emt 0:00:13]} Nxb6 {[%emt 0:00:58]} 43. Ra6 {[%emt 0:07:49]} f4 {[%emt 0:00:31]} 44. Rxb6 {[%emt 0:02:03]} fxe3 {[%emt 0:00:02]} 45. Rg6 {[%emt 0:00:01]} Rxc5+ {[%emt 0:00:14]} 46. Kd3 {[%emt 0:00:01]} e2 {[%emt 0:00:00]} 47. Kxe2 Rc2+ 48. Kf1 {[%emt 0:00:06]} g4 {[%emt 0:01:21]} 49. hxg4 {[%emt 0:00:19]} hxg4 {[%emt 0:00:08]} 50. Rxg4 {[%emt 0:00:01]} Ke6 {[%emt 0:00:18]} 51. Re4 {[%emt 0:00:13]} Kf5 {[%emt 0:00:43]} 52. Kg1 {[%emt 0:01:04]} Rd2 {[%emt 0:00:21]} 53. Kh2 {[%emt 0:00:05]} Rd7 {[%emt 0:00:27]} 54. Kg3 {[%emt 0:00:03]} Rg7+ {[%emt 0:00:07]} 55. Kf2 {[%emt 0:00:02]} Ra7 {[%emt 0:00:29]} 56. g4+ {[%emt 0:01:35]} Kf6 {[%emt 0:00:09]} 57. Rb4 {[%emt 0:00:01]} Ra6 {[%emt 0:02:49]} 58. Rb8 {[%emt 0:00:06]} Rd6 {[%emt 0:00:39]} 59. Rf8+ {[%emt 0:00:04]} Ke6 {[%emt 0:00:30]} 60. Kg3 {[%emt 0:00:13]} Rd3 {[%emt 0:00:09]} 61. Kh4 {[%emt 0:00:10]} Ke7 {[%emt 0:00:14]} 62. Rf5 {[%emt 0:00:01]} Ke6 {[%emt 0:00:01]} 63. Kg5 {[%emt 0:00:07]} Re3 {[%emt 0:01:31]} 64. Kg6 {[%emt 0:01:30]} Re1 {[%emt 0:00:31]} 65. f4 {[%emt 0:01:59]} exf4 {[%emt 0:00:31]} 66. Rxf4 {[%emt 0:00:02]} Rg1 {[%emt 0:00:04]} 67. g5 {[%emt 0:00:01]} Ke7 {[%emt 0:00:01]} 68. Kh6 {[%emt 0:00:04]} Rh1+ {[%emt 0:00:18]} 69. Kg7 {[%emt 0:00:01]} Rg1 {[%emt 0:00:05]} 70. g6 {[%emt 0:00:01]} Ke8 {[%emt 0:00:05]} 71. Kh7 {[%emt 0:00:01]} Rh1+ {[%emt 0:00:08]} 72. Kg8 {[%emt 0:00:01]} Rg1 {[%emt 0:00:09]} 73. g7 {[%emt 0:00:01]} Rg3 {[%emt 0:00:09]} 74. Re4+ {[%emt 0:00:01]} Kd7 {[%emt 0:00:05]} 75. Kf7 {[%emt 0:00:01]} Rf3+ 76. Kg6 Rg3+ {[%emt 0:00:24]} 77. Kf6 {[%emt 0:00:02]} Rf3+ {[%emt 0:00:21]} 78. Kg5 {[%emt 0:00:01]} 1-0